lending/lending_fUSD_20251114
["ID","MTS","AMOUNT","RATE_DAILY","PERIOD"]
[393898157,1763080935866,-151.0,0.00016886,2]
[393898158,1763080935894,-151.0,0.00016886,2]
[393898159,1763080935924,-151.0,0.00016886,2]
[393898160,1763080936012,-9094.01,0.00016886,2]
[393898161,1763080939101,-151.0,0.00016886,2]
[393898162,1763080949378,500.0,0.00016886,2]
[393898163,1763080954294,-9500.01,0.00016886,2]
[393898164,1763080954406,-10000.01,0.00016886,2]
[393898165,1763080954675,-10000.01,0.00016886,2]
[393898166,1763080955070,-10000.01,0.00016886,2]
[393898167,1763080955202,-10000.01,0.00016886,2]
[393898168,1763080967669,193.25,0.00016712,2]
[393898169,1763080980207,500.0,0.00016885,2]
[393898171,1763080993021,500.0,0.00016273,2]
[393898172,1763081011601,600.28142108,0.00016885,2]
[393898174,1763081012438,500.0,0.00016886,2]
[393898175,1763081043442,500.0,0.00016885,2]
[393898176,1763081076282,175.82596745,0.00016787,2]
[393898177,1763081081410,175.82596744,0.00016816,2]
[393898181,1763081098346,486.64,8.142e-05,2]
[393898182,1763081098602,486.64,8.571e-05,2]
[393898183,1763081098769,486.64,8.999e-05,2]
[393898184,1763081098986,486.64,9.428e-05,2]
[393898185,1763081099218,486.64,9.856e-05,2]
[393898186,1763081099435,486.64,0.00010285,2]
[393898187,1763081099651,486.64,0.00010714,2]
[393898188,1763081100085,486.64,0.00011142,2]
[393898189,1763081100292,486.64,0.00011571,2]
[393898190,1763081100495,486.64,0.00011999,2]
[393898191,1763081100752,486.64,0.00012428,2]
[393898192,1763081100972,486.64,0.00012856,2]
[393898193,1763081101198,1015.14664403,0.00016885,2]
[393898194,1763081101222,184.85335597,0.00016885,2]
[393898195,1763081105734,486.64,0.00013285,2]
[393898196,1763081105964,486.64,0.00013713,2]
[393898197,1763081106187,486.64,0.00014142,2]
[393898198,1763081106455,486.64,0.0001457,2]
[393898199,1763081106678,486.64,0.00014999,2]
[393898200,1763081106906,486.64,0.00015428,2]
[393898201,1763081107426,486.64,0.00015856,2]
[393898202,1763081108210,486.64,0.00016285,2]
[393898204,1763081112689,500.0,0.00016873,2]
[393898206,1763081113073,500.0,0.00016873,2]
[393898207,1763081113257,500.0,0.00016873,2]
[393898208,1763081113287,500.0,0.00016873,2]
[393898227,1763081132243,3922.03664403,0.00016786,2]
[393898228,1763081132267,10000.01,0.00016786,2]
[393898229,1763081132289,1933.09545597,0.00016786,2]
[393898230,1763081167834,1899.955298,7.945e-05,2]
[393898231,1763081172710,150.0,0.000162,2]
[393898232,1763081172748,150.0,0.00016425,2]
[393898233,1763081172810,150.0,0.0001665,2]
[393898234,1763081172875,150.0,0.00016875,2]
[393898236,1763081184820,5566.95924603,0.00016787,2]
[393898237,1763081184843,5157.9418548,0.00016787,2]
[393898240,1763081249566,500.0,0.00016886,2]
[393898242,1763081257842,500.0,0.00016886,2]
[393898244,1763081276491,1000.0,0.00016292,2]
[393898245,1763081301217,2842.0681452,0.00016786,2]
[393898246,1763081301239,10000.01,0.00016786,2]
[393898247,1763081301260,4470.0386548,0.00016786,2]
[393898253,1763081353361,1000.0,0.00016885,2]
[393898265,1763081402923,500.0,0.00016786,2]
[393898266,1763081405019,150.0,0.000163,2]
[393898279,1763081417513,3879.9713452,0.000168,2]
[393898280,1763081417535,4444.88077487,0.000168,2]
[393898307,1763081431950,-598.35754302,0.00016886,2]
[393898308,1763081432036,-1023.14353859,0.00016886,2]
[393898309,1763081432047,-9900.0,0.00016886,2]
[393898310,1763081432062,-153916.18824357,0.00016886,2]
[393898311,1763081432071,-300.0,0.00016886,2]
[393898312,1763081432081,-250.0,0.00016887,2]
[393898313,1763081432091,-300.61809369,0.00016887,2]
[393898314,1763081432102,-1817.42532139,0.00016887,2]
[393898315,1763081432112,-250.0,0.00016888,2]
[393898316,1763081432122,-500.0,0.00016898,2]
[393898317,1763081432131,-269.88003219,0.00016898,2]
[393898318,1763081432142,-500.0,0.00016898,2]
[393898320,1763081432151,-201.7718068,0.00016898,2]
[393898322,1763081432161,-500.0,0.00016898,2]
[393898324,1763081432171,-485.7689719,0.00016898,2]
[393898325,1763081432182,-1000.0,0.000169,2]
[393898326,1763081432192,-3003.1939,0.000169,2]
[393898327,1763081432201,-33305.0021,0.000169,2]
[393898328,1763081432211,-153.20968267,0.00016908,2]
[393898329,1763081432221,-10724.90110076,0.00016911,2]
[393898330,1763081432236,-625.0,0.00016964,2]
[393898331,1763081432245,-625.0,0.00016964,2]
[393898332,1763081432254,-10724.90110076,0.00017034,2]
[393898333,1763081432264,-505.31022957,0.00017053,2]
[393898334,1763081432274,-319.56686651,0.00017053,2]
[393898335,1763081432283,-500.0,0.00017053,2]
[393898337,1763081432292,-500.0,0.00017053,2]
[393898339,1763081432302,-430.02161934,0.00017053,2]
[393898341,1763081432310,-1534.0,0.00017078,2]
[393898342,1763081432319,-500.0,0.00017082,2]
[393898343,1763081432329,-500.0,0.00017082,2]
[393898344,1763081432338,-500.0,0.00017082,2]
[393898346,1763081432347,-500.0,0.00017082,2]
[393898348,1763081432356,-500.0,0.00017082,2]
[393898349,1763081432365,-567.08701969,0.00017082,2]
[393898350,1763081432374,-500.0,0.00017082,2]
[393898351,1763081432384,-500.0,0.00017082,2]
[393898352,1763081432393,-15029.60011446,0.00017083,2]
[393898353,1763081432405,-11964.71373162,0.00017083,2]
[393898354,1763081432414,-150.0,0.000171,2]
[393898355,1763081432424,-2500.0,0.000171,3]
[393898356,1763081432433,-2250.0,0.00017148,2]
[393898357,1763081432443,-150.0,0.00017155,2]
[393898358,1763081432452,-300.0,0.00017155,4]
[393898359,1763081432461,-450.0,0.00017155,4]
[393898360,1763081432471,-10724.90110076,0.00017158,2]
[393898361,1763081432483,-2250.0,0.00017161,2]
[393898362,1763081432493,-1800.0,0.000172,6]
[393898363,1763081432507,-525.0,0.00017204,2]
[393898364,1763081432516,-10724.90110076,0.00017282,2]
[393898365,1763081432526,-3600.0,0.000173,6]
[393898366,1763081432535,-2101.24134423,0.00017319,2]
[393898367,1763081432544,-150.0,0.00017325,2]
[393898368,1763081432554,-221.0,0.00017336,2]
[393898369,1763081432563,-525.0,0.0001734,2]
[393898370,1763081432572,-525.0,0.0001736,2]
[393898371,1763081432582,-335.44482453,0.00017388,2]
[393898372,1763081432591,-5400.0,0.000174,6]
[393898373,1763081432600,-10724.90110076,0.00017405,2]
[393898374,1763081432610,-525.0,0.00017418,2]
[393898375,1763081432619,-500.0,0.0001742,2]
[393898376,1763081432628,-500.0,0.0001742,2]
[393898377,1763081432638,-500.0,0.0001742,2]
[393898378,1763081432647,-500.0,0.0001742,2]
[393898379,1763081432656,-23438.99621511,0.00017432,2]
[393898380,1763081432666,-1843.08037633,0.00017433,2]
[393898381,1763081432675,-151.0,0.00017483,2]
[393898382,1763081432684,-23438.99621505,0.00017484,2]
[393898383,1763081432694,-133.71921233,0.00017485,2]
[393898384,1763081433063,-5754.28078767,0.00017485,2]
[393898385,1763081433074,-7200.0,0.000175,6]
[393898386,1763081433083,-459.45114266,0.00017506,2]
[393898387,1763081433093,-151.0,0.00017509,2]
[393898388,1763081433104,-10724.90110076,0.00017529,2]
[393898389,1763081433114,-151.0,0.00017532,2]
[393898390,1763081433123,-23438.99621505,0.00017536,2]
[393898391,1763081433132,-219.69453274,0.00017547,2]
[393898392,1763081433169,-500.0,0.00016898,2]
[393898393,1763081433179,-166.0,0.00016898,2]
[393898394,1763081434161,-334.0,0.00016898,2]
[393898395,1763081434191,-500.0,0.00016898,2]
[393898396,1763081434224,-500.0,0.00016898,2]
[393898397,1763081434254,-500.0,0.00016898,2]
[393898398,1763081434283,-500.0,0.00016898,2]
[393898399,1763081434314,-571.0713143,0.00016898,2]
[393898400,1763081434345,-500.0,0.00016898,2]
[393898401,1763081434378,-500.0,0.00016898,2]
[393898402,1763081434410,-500.0,0.00016898,2]
[393898403,1763081434441,-500.0,0.00016898,2]
[393898404,1763081435769,403.08653182,0.00041032,120]
[393898407,1763081437885,-1318.6106491,0.00016786,2]
[393898408,1763081437988,-1972.78274802,0.00016786,2]
[393898409,1763081438021,-416708.60660288,0.00016786,2]
[393898410,1763081438033,-500.0,0.00016898,2]
[393898411,1763081438043,-500.0,0.00016898,2]
[393898412,1763081438052,-500.0,0.00016898,2]
[393898413,1763081438062,-500.0,0.00016898,2]
[393898414,1763081438072,-500.0,0.00016898,2]
[393898415,1763081438082,-500.0,0.00016898,2]
[393898417,1763081438092,-500.0,0.00016898,2]
[393898418,1763081438103,-500.0,0.00016898,2]
[393898419,1763081438113,-500.0,0.00016898,2]
[393898420,1763081438122,-500.0,0.00016898,2]
[393898421,1763081438132,-500.0,0.00016898,2]
[393898422,1763081438141,-500.0,0.00016898,2]
[393898424,1763081438150,-500.0,0.00016898,2]
[393898425,1763081438159,-500.0,0.00016898,2]
[393898426,1763081438169,-500.0,0.00016898,2]
[393898427,1763081438179,-500.0,0.00016898,2]
[393898428,1763081438188,-500.0,0.00016898,2]
[393898429,1763081438198,-500.0,0.00016898,2]
[393898431,1763081438208,-305.30546726,0.00017547,2]
[393898432,1763081438218,-459.45114261,0.0001755,2]
[393898433,1763081438229,-150.0,0.0001755,2]
[393898434,1763081438239,-151.0,0.00017551,2]
[393898435,1763081438248,-23438.99621505,0.00017588,2]
[393898436,1763081438258,-459.45114261,0.00017594,2]
[393898437,1763081438268,-9000.0,0.000176,6]
[393898438,1763081438277,-500.0,0.00017621,2]
[393898439,1763081438287,-500.0,0.00017621,2]
[393898440,1763081438296,-500.0,0.00017621,2]
[393898441,1763081438306,-500.0,0.00017621,2]
[393898442,1763081438316,-500.0,0.00017621,2]
[393898443,1763081438325,-500.0,0.00017621,2]
[393898444,1763081438335,-459.45114261,0.00017637,2]
[393898445,1763081438345,-23438.99621505,0.0001764,2]
[393898446,1763081438354,-10724.90110076,0.00017653,2]
[393898447,1763081438363,-14697.32588527,0.00017656,2]
[393898448,1763081438373,-459.45114261,0.00017681,2]
[393898449,1763081438382,-23438.99621505,0.00017692,2]
[393898450,1763081438391,-1800.0,0.000177,6]
[393898451,1763081438401,-1000.0,0.000177,2]
[393898452,1763081438411,-459.45114261,0.00017725,2]
[393898453,1763081438420,-2833.89,0.00017728,2]
[393898454,1763081438430,-150.99,0.00017728,2]
[393898455,1763081438440,-999.99,0.00017728,2]
[393898456,1763081438449,-9999.99,0.00017728,2]
[393898457,1763081438459,-23438.99621505,0.00017744,2]
[393898458,1763081438468,-1706.16419399,0.00017764,2]
[393898459,1763081438479,-459.45114261,0.00017769,2]
[393898460,1763081438489,-150.0,0.00017775,2]
[393898461,1763081438499,-10724.90110076,0.00017776,2]
[393898462,1763081438508,-525.0,0.00017779,2]
[393898463,1763081438518,-23438.99621505,0.00017796,2]
[393898464,1763081438528,-1800.0,0.000178,6]
[393898465,1763081438538,-525.0,0.00017811,2]
[393898466,1763081438547,-525.0,0.00017811,2]
[393898467,1763081438556,-459.45114261,0.00017812,2]
[393898468,1763081438566,-621.52513,0.0001782,2]
[393898469,1763081438575,-23438.99621505,0.00017848,2]
[393898470,1763081438585,-160.5,0.00017851,2]
[393898471,1763081438594,-200.0,0.00017855,2]
[393898472,1763081438603,-200.0,0.00017856,2]
[393898473,1763081438613,-2868.836,0.00017856,2]
[393898474,1763081438623,-200.0,0.00017856,2]
[393898475,1763081438633,-200.0,0.00017856,2]
[393898476,1763081438642,-200.0,0.00017856,2]
[393898477,1763081438651,-459.45114261,0.00017856,2]
[393898478,1763081438660,-321.6,0.00017859,2]
[393898479,1763081438670,-2500.0,0.00017882,3]
[393898480,1763081438679,-525.0,0.00017885,2]
[393898481,1763081438689,-2500.0,0.00017891,3]
[393898482,1763081438699,-1595.9478,0.000179,2]
[393898483,1763081438709,-1011.14801472,0.000179,2]
[393898484,1763081438718,-9903.2928578,0.000179,2]
[393898485,1763081438729,-2500.0,0.000179,3]
[393898486,1763081438738,-1000.0,0.000179,2]
[393898487,1763081438748,-10724.90110076,0.000179,2]
[393898488,1763081438757,-1800.0,0.000179,6]
[393898489,1763081438767,-459.45114261,0.000179,2]
[393898490,1763081438776,-226.77554458,0.000179,3]
[393898491,1763081438785,-229.05824722,0.000179,2]
[393898492,1763081438795,-2028.98455947,0.000179,2]
[393898493,1763081438805,-2734.17754372,0.000179,2]
[393898494,1763081438815,-2033.00515604,0.000179,2]
[393898495,1763081438826,-23438.99621505,0.000179,2]
[393898496,1763081438836,-521.34032885,0.000179,2]
[393898497,1763081438846,-500.0,0.000179,2]
[393898498,1763081438856,-500.0,0.000179,2]
[393898499,1763081438865,-500.0,0.000179,2]
[393898500,1763081438875,-500.0,0.000179,2]
[393898501,1763081438886,-500.0,0.000179,2]
[393898502,1763081438896,-6098.79891156,0.000179,2]
[393898503,1763081438905,-621.52513,0.0001793,2]
[393898504,1763081438915,-443.73507614,0.00017972,2]
[393898505,1763081438924,-500.0,0.00017972,2]
[393898506,1763081438934,-500.0,0.00017972,2]
[393898507,1763081438944,-500.0,0.00017972,2]
[393898508,1763081438954,-500.0,0.00017972,2]
[393898509,1763081438964,-500.0,0.00017972,2]
[393898510,1763081438973,-875.0,0.00017973,2]
[393898511,1763081438984,-500.0,0.00017973,2]
[393898512,1763081438993,-500.0,0.00017973,2]
[393898513,1763081439004,-500.0,0.00017973,2]
[393898514,1763081439014,-500.0,0.00017973,2]
[393898515,1763081439027,-500.0,0.00017973,2]
[393898516,1763081439037,-171.31783739,0.00017973,2]
[393898517,1763081439047,-500.0,0.00017973,2]
[393898518,1763081439056,-500.0,0.00017973,2]
[393898519,1763081439067,-500.0,0.00017973,2]
[393898520,1763081439077,-500.68799219,0.00017973,2]
[393898521,1763081439086,-500.0,0.00017973,2]
[393898522,1763081439097,-431.70775828,0.00017973,2]
[393898523,1763081439106,-500.0,0.00017973,2]
[393898524,1763081439116,-416.9,0.00017973,2]
[393898525,1763081439125,-5441.0,0.00017982,2]
[393898526,1763081439134,-151.0,0.00017982,2]
[393898527,1763081439144,-600.0,0.0001799,4]
[393898528,1763081439153,-2619.97953591,0.0001799,2]
[393898529,1763081439163,-2619.97953591,0.0001799,2]
[393898530,1763081439173,-2619.97953591,0.0001799,2]
[393898531,1763081439182,-151.0,0.00017997,2]
[393898532,1763081439192,-500.0,0.00017998,2]
[393898533,1763081439201,-500.0,0.00017998,2]
[393898534,1763081439211,-500.0,0.00017998,2]
[393898535,1763081439220,-321.47676555,0.00017998,2]
[393898536,1763081439230,-1066.66237962,0.00017999,5]
[393898537,1763081439419,-1066.66237962,0.00017999,5]
[393898538,1763081439428,-1066.6623796,0.00017999,5]
[393898539,1763081439437,-1066.66237962,0.00017999,5]
[393898540,1763081439447,-1066.66237962,0.00017999,5]
[393898541,1763081439456,-300.0,0.00017999,2]
[393898542,1763081439466,-1000.0,0.00017999,2]
[393898543,1763081439476,-500.0,0.00017999,2]
[393898544,1763081439485,-500.0,0.00017999,2]
[393898545,1763081439495,-500.0,0.00017999,2]
[393898546,1763081439505,-500.0,0.00017999,2]
[393898547,1763081439514,-500.0,0.00017999,2]
[393898548,1763081439523,-500.0,0.00017999,2]
[393898549,1763081439532,-500.0,0.00017999,2]
[393898550,1763081439542,-500.0,0.00017999,2]
[393898551,1763081439551,-500.0,0.00017999,2]
[393898552,1763081439560,-500.0,0.00017999,2]
[393898553,1763081439570,-347.29333909,0.00017999,2]
[393898554,1763081439579,-500.0,0.00017999,2]
[393898555,1763081439589,-500.0,0.00017999,2]
[393898556,1763081439598,-500.0,0.00017999,2]
[393898557,1763081439607,-500.0,0.00017999,2]
[393898558,1763081439616,-500.0,0.00017999,2]
[393898559,1763081439626,-500.0,0.00017999,2]
[393898560,1763081439635,-500.0,0.00017999,2]
[393898561,1763081439645,-500.0,0.00017999,2]
[393898562,1763081439654,-183.71787883,0.00017999,2]
[393898563,1763081439663,-300.0,0.00017999,2]
[393898564,1763081439672,-300.0,0.00017999,2]
[393898565,1763081439682,-750.0,0.00017999,4]
[393898566,1763081439691,-900.0,0.00017999,4]
[393898567,1763081439700,-1050.0,0.00017999,4]
[393898568,1763081439709,-1200.0,0.00017999,4]
[393898569,1763081439719,-1350.0,0.00017999,4]
[393898570,1763081439728,-479.16104617,0.00017999,4]
[393898571,1763081439737,-300.0,0.00017999,2]
[393898572,1763081439746,-300.0,0.00017999,2]
[393898573,1763081439755,-500.0,0.00017999,2]
[393898574,1763081439764,-500.0,0.00017999,2]
[393898575,1763081439774,-500.0,0.00017999,2]
[393898576,1763081439783,-500.0,0.00017999,2]
[393898577,1763081439792,-500.0,0.00017999,2]
[393898578,1763081439801,-500.0,0.00017999,2]
[393898579,1763081439811,-500.0,0.00017999,2]
[393898580,1763081439821,-500.0,0.00017999,2]
[393898581,1763081439830,-337.97311388,0.00017999,2]
[393898582,1763081439839,-359.98361765,0.00017999,2]
[393898583,1763081439848,-500.0,0.00017999,2]
[393898584,1763081439857,-500.0,0.00017999,2]
[393898585,1763081439867,-500.0,0.00017999,2]
[393898586,1763081439876,-500.0,0.00017999,2]
[393898587,1763081439885,-500.0,0.00017999,2]
[393898588,1763081439894,-500.0,0.00017999,2]
[393898589,1763081439903,-500.0,0.00017999,2]
[393898590,1763081439912,-500.0,0.00017999,2]
[393898591,1763081439922,-500.0,0.00017999,2]
[393898592,1763081439931,-500.0,0.00017999,2]
[393898593,1763081439940,-500.0,0.00017999,2]
[393898594,1763081439950,-500.0,0.00017999,2]
[393898595,1763081439959,-500.0,0.00017999,2]
[393898596,1763081439969,-500.0,0.00017999,2]
[393898597,1763081439979,-500.0,0.00017999,2]
[393898598,1763081439988,-500.0,0.00017999,2]
[393898599,1763081439998,-500.0,0.00017999,2]
[393898600,1763081440007,-500.0,0.00017999,2]
[393898601,1763081440018,-500.0,0.00017999,2]
[393898602,1763081440029,-414.79117042,0.00017999,2]
[393898603,1763081440039,-500.0,0.00017999,2]
[393898604,1763081440048,-402.24008145,0.00017999,2]
[393898605,1763081440058,-500.0,0.00017999,2]
[393898606,1763081440070,-500.0,0.00017999,2]
[393898607,1763081440079,-500.0,0.00017999,2]
[393898608,1763081440089,-500.0,0.00017999,2]
[393898609,1763081440099,-500.0,0.00017999,2]
[393898610,1763081440108,-500.0,0.00017999,2]
[393898611,1763081440117,-500.0,0.00017999,2]
[393898612,1763081440127,-500.0,0.00017999,2]
[393898613,1763081440136,-500.0,0.00017999,2]
[393898614,1763081440145,-500.0,0.00017999,2]
[393898615,1763081440155,-500.0,0.00017999,2]
[393898616,1763081440163,-500.0,0.00017999,2]
[393898617,1763081440173,-500.0,0.00017999,2]
[393898618,1763081440182,-500.0,0.00017999,2]
[393898619,1763081440192,-500.0,0.00017999,2]
[393898620,1763081440201,-500.0,0.00017999,2]
[393898621,1763081440210,-309.5068257,0.00017999,2]
[393898622,1763081440220,-500.0,0.00017999,2]
[393898623,1763081440229,-500.0,0.00017999,2]
[393898624,1763081440239,-507.90035275,0.00017999,2]
[393898625,1763081440248,-500.0,0.00017999,2]
[393898626,1763081440257,-467.64684588,0.00017999,2]
[393898627,1763081440267,-500.0,0.00017999,2]
[393898628,1763081440276,-500.0,0.00017999,2]
[393898629,1763081440285,-500.0,0.00017999,2]
[393898630,1763081440294,-621.95820593,0.00017999,2]
[393898631,1763081440304,-500.0,0.00017999,2]
[393898632,1763081440312,-500.0,0.00017999,2]
[393898633,1763081440322,-500.0,0.00017999,2]
[393898634,1763081440331,-602.53417578,0.00017999,2]
[393898635,1763081440341,-525.0,0.00018,2]
[393898636,1763081440351,-186.28760173,0.00018,2]
[393898637,1763081440360,-10255841.1274626,0.00018,2]
[393898640,1763081440691,-286.28658755,0.00018,2]
[393898641,1763081440702,-1087.8115798,0.00018,2]
[393898642,1763081440768,-1495.7766,0.00018,2]
[393898665,1763081443778,-500.0,0.00016898,2]
[393898667,1763081443788,-500.0,0.00016898,2]
[393898669,1763081443798,-115.23961659,0.00016898,2]
[393898721,1763081452547,-384.76038341,0.00016898,2]
[393898722,1763081452579,-500.0,0.00016898,2]
[393898723,1763081452614,-500.0,0.00016898,2]
[393898724,1763081452648,-500.0,0.00016898,2]
[393898725,1763081452680,-500.0,0.00016898,2]
[393898726,1763081452714,-500.0,0.00016898,2]
[393898727,1763081452745,-500.0,0.00016898,2]
[393898728,1763081457889,1000.0,0.000168,2]
[393898890,1763081527902,500.0,0.00041032,30]
[393898891,1763081528487,500.0,0.00041032,30]
[393898892,1763081529092,500.0,0.00041032,30]
[393898893,1763081529721,500.0,0.00041032,30]
[393898894,1763081530456,500.0,0.00041032,30]
[393898895,1763081530956,500.0,0.00041032,30]
[393898896,1763081531599,500.0,0.00041032,30]
[393898897,1763081532218,500.0,0.00041032,30]
[393898898,1763081532868,500.0,0.00041032,30]
[393898899,1763081533496,500.0,0.00041032,30]
[393898900,1763081534110,500.0,0.00041032,30]
[393898901,1763081534778,500.0,0.00041032,30]
[393898902,1763081535401,500.0,0.00041032,30]
[393898903,1763081536016,500.0,0.00041032,30]
[393898904,1763081536625,500.0,0.00041032,30]
[393898905,1763081536996,152.025663,0.00041032,120]
[393898906,1763081537239,500.0,0.00041032,30]
[393898907,1763081537357,152.025663,0.00041032,120]
[393898908,1763081537755,152.025663,0.00041032,120]
[393898911,1763081538266,500.0,0.00041032,30]
[393898912,1763081538321,152.025663,0.00041032,120]
[393898913,1763081538405,152.025663,0.00041032,120]
[393898914,1763081538466,500.0,0.00041032,30]
[393898915,1763081538757,152.025663,0.00041032,120]
[393898916,1763081539101,152.025663,0.00041032,120]
[393898917,1763081539134,500.0,0.00041032,30]
[393898918,1763081539279,249.188495,0.00041032,120]
[393898919,1763081539432,152.025663,0.00041032,120]
[393898920,1763081539609,249.188495,0.00041032,120]
[393898921,1763081539719,500.0,0.00041032,30]
[393898922,1763081539787,152.025663,0.00041032,120]
[393898923,1763081539932,249.188495,0.00041032,120]
[393898924,1763081540165,152.025663,0.00041032,120]
[393898925,1763081540731,249.188495,0.00041032,120]
[393898926,1763081540766,152.025663,0.00041032,120]
[393898927,1763081540809,249.188495,0.00041032,120]
[393898928,1763081540904,152.025663,0.00041032,120]
[393898929,1763081541125,249.188495,0.00041032,120]
[393898930,1763081541270,152.025663,0.00041032,120]
[393898931,1763081541417,249.188495,0.00041032,120]
[393898932,1763081541611,152.025663,0.00041032,120]
[393898933,1763081541784,249.188495,0.00041032,120]
[393898934,1763081541964,152.025663,0.00041032,120]
[393898935,1763081542102,249.188495,0.00041032,120]
[393898936,1763081542427,249.188495,0.00041032,120]
[393898937,1763081542750,249.188495,0.00041032,120]
[393898938,1763081543087,249.188495,0.00041032,120]
[393898939,1763081543421,249.188495,0.00041032,120]
[393898940,1763081543741,249.188495,0.00041032,120]
[393898941,1763081544091,249.188495,0.00041032,120]
[393898942,1763081544415,249.188495,0.00041032,120]
[393898943,1763081544725,249.188495,0.00041032,120]
[393898944,1763081545038,249.188495,0.00041032,120]
[393898945,1763081545365,249.188495,0.00041032,120]
[393898946,1763081545406,153.285928,0.00041032,120]
[393898947,1763081545677,249.188495,0.00041032,120]
[393898948,1763081545722,153.285928,0.00041032,120]
[393898949,1763081546342,153.285928,0.00041032,120]
[393898950,1763081546433,153.285928,0.00041032,120]
[393898951,1763081546685,153.285928,0.00041032,120]
[393898952,1763081546718,249.188495,0.00041032,120]
[393898953,1763081547019,153.285928,0.00041032,120]
[393898954,1763081547362,153.285928,0.00041032,120]
[393898955,1763081547677,153.285928,0.00041032,120]
[393898956,1763081548013,153.285928,0.00041032,120]
[393898958,1763081548658,153.285928,0.00041032,120]
[393898959,1763081548991,153.285928,0.00041032,120]
[393898993,1763081553281,184.00475,0.00041032,120]
[393899001,1763081553580,184.00475,0.00041032,120]
[393899004,1763081553891,184.00475,0.00041032,120]
[393899005,1763081554256,184.00475,0.00041032,120]
[393899006,1763081554582,184.00475,0.00041032,120]
[393899007,1763081554927,184.00475,0.00041032,120]
[393899008,1763081555244,184.00475,0.00041032,120]
[393899009,1763081555557,184.00475,0.00041032,120]
[393899010,1763081555854,184.00475,0.00041032,120]
[393899011,1763081556161,184.00475,0.00041032,120]
[393899012,1763081556510,184.00475,0.00041032,120]
[393899013,1763081556826,184.00475,0.00041032,120]
[393899014,1763081557129,184.00475,0.00041032,120]
[393899015,1763081557449,184.00475,0.00041032,120]
[393899016,1763081557761,184.00475,0.00041032,120]
[393899017,1763081558080,184.00475,0.00041032,120]
[393899018,1763081558413,184.00475,0.00041032,120]
[393899020,1763081559138,184.00475,0.00041032,120]
[393899021,1763081559203,184.00475,0.00041032,120]
[393899022,1763081559376,184.00475,0.00041032,120]
[393899024,1763081560427,184.00475,0.00041032,120]
[393899027,1763081579011,10000.01,0.000168,2]
[393899028,1763081579032,10000.01,0.000168,2]
[393899029,1763081579054,10000.01,0.000168,2]
[393899030,1763081579078,3304.9721,0.000168,2]
[393899031,1763081604018,6695.0379,0.00016786,2]
[393899032,1763081604044,10000.01,0.00016786,2]
[393899033,1763081604071,10000.01,0.00016786,2]
[393899034,1763081604101,10000.01,0.00016786,2]
[393899035,1763081604129,10000.01,0.00016786,2]
[393899036,1763081604155,10000.01,0.00016786,2]
[393899037,1763081604180,10000.01,0.00016786,2]
[393899038,1763081604204,10000.01,0.00016786,2]
[393899039,1763081604228,10000.01,0.00016786,2]
[393899040,1763081604252,10000.01,0.00016786,2]